bitfinex/quotes_SOLUSD_20241226
["timestamp","ask_amount","ask_price","bid_price","bid_amount"]
[1735216815226,5.42279627,189.93,189.82,9.61817601]
[1735216815430,1.1067,189.92,189.82,9.61817601]
[1735216815761,1.1067,189.92,189.83,9.61817601]
[1735216818955,1.1067,189.92,189.82,9.61817601]
[1735216820953,0.12549,189.91,189.8,0.78993366]
[1735216821154,0.12549,189.91,189.81,9.61817601]
[1735216823649,1.1067,189.92,189.82,33.39506001]
[1735216827469,1.1067,189.92,189.81,33.39506001]
[1735216827943,20.0,189.9,189.8,10.40810967]
[1735216828141,20.0,189.9,189.8,9.61817601]
[1735216830666,20.0,189.9,189.81,9.61817601]
[1735216830846,20.0,189.9,189.8,34.18511916]
[1735216832369,20.0,189.9,189.81,9.61817601]
[1735216833871,20.0,189.9,189.8,24.56694315]
[1735216833872,20.0,189.9,189.8,0.79005915]
[1735216834051,20.0,189.9,189.78,9.61817601]
[1735216834252,20.0,189.9,189.79,23.776884]
[1735216834667,20.0,189.9,189.79,9.61817601]
[1735216837182,20.0,189.9,189.78,23.776884]
[1735216837383,20.0,189.9,189.78,33.39506001]
[1735216837557,0.12549,189.89,189.78,33.39506001]
[1735216841188,20.12549,189.89,189.79,9.61817601]
[1735216842084,20.12549,189.89,189.78,33.39506001]
[1735216844362,20.12549,189.89,189.78,23.776884]
[1735216844689,20.12549,189.89,189.78,33.39506001]
[1735216845281,6.6472,189.86,189.73,20.02992227]
[1735216845454,1.1067,189.85,189.75,9.61817601]
[1735216845787,0.12549,189.84,189.74,9.61817601]
[1735216847056,20.0,189.83,189.73,9.61817601]
[1735216849673,20.0,189.83,189.74,9.61817601]
[1735216852190,0.12549,189.82,189.72,0.79040166]
[1735216852482,0.12549,189.8,189.72,9.61817601]
[1735216854494,20.0,189.82,189.74,9.61817601]
[1735216854697,20.0,189.82,189.75,9.61817601]
[1735216854984,20.0,189.83,189.75,9.61817601]
[1735216855576,1.1067,189.85,189.78,9.61817601]
[1735216857080,1.1067,189.85,189.77,9.61817601]
[1735216857290,1.1067,189.85,189.76,9.61817601]
[1735216857989,1.1067,189.85,189.74,2.29070813]
[1735216857990,0.12549,189.84,189.74,2.29070813]
[1735216858178,1.1067,189.85,189.76,9.61817601]
[1735216858480,1.1067,189.85,189.77,9.61817601]
[1735216859797,1.1067,189.85,189.78,9.61817601]
[1735216860895,1.1067,189.85,189.77,9.61817601]
[1735216862699,1.1067,189.85,189.76,9.61817601]
[1735216865696,1.1067,189.85,189.75,23.776884]
[1735216865897,0.12549,189.84,189.73,13.1759]
[1735216866108,0.12549,189.84,189.74,9.61817601]
[1735216869206,0.12549,189.84,189.74,23.776884]
[1735216869402,0.12549,189.82,189.71,0.79033491]
[1735216869608,0.12549,189.8,189.7,9.61817601]
[1735216869794,1.1067,189.79,189.68,9.61817601]
[1735216869995,0.12549,189.78,189.68,9.61817601]
[1735216870197,20.12549,189.78,189.67,0.79052378]
[1735216870401,20.12549,189.78,189.66,9.61817601]
[1735216873315,6.3448,189.75,189.65,9.61817601]
[1735216873499,0.12549,189.74,189.64,9.61817601]
[1735216873986,0.12549,189.74,189.65,9.61817601]
[1735216874390,6.3448,189.75,189.67,9.61817601]
[1735216875524,6.3448,189.75,189.66,23.776884]
[1735216875696,6.3448,189.75,189.67,9.61817601]
[1735216876293,6.3448,189.75,189.68,23.776884]
[1735216877214,6.3448,189.75,189.68,33.39506001]
[1735216878419,6.1745,189.8,189.73,33.39506001]
[1735216878602,6.1745,189.8,189.74,9.61817601]
[1735216881419,6.1745,189.8,189.71,23.776884]
[1735216881603,6.1745,189.8,189.73,9.61817601]
[1735216882219,6.1745,189.8,189.72,9.61817601]
[1735216882421,6.1745,189.8,189.7,0.79034189]
[1735216882724,6.1745,189.8,189.72,9.61817601]
[1735216883919,6.1745,189.8,189.73,23.776884]
[1735216884111,6.1745,189.8,189.73,33.39506001]
[1735216888133,6.1745,189.8,189.73,23.776884]
[1735216888307,6.1745,189.8,189.73,33.39506001]
[1735216890146,6.1745,189.8,189.74,9.61817601]
[1735216891630,6.1745,189.8,189.73,33.39506001]
[1735216891825,6.1745,189.8,189.73,9.61817601]
[1735216892027,6.1745,189.8,189.74,23.776884]
[1735216892731,6.1745,189.8,189.73,23.776884]
[1735216894936,6.1745,189.8,189.69,20.0]
[1735216895110,6.1745,189.8,189.7,9.61817601]
[1735216895309,6.1745,189.8,189.71,23.776884]
[1735216897036,0.12549,189.79,189.7,9.61817601]
[1735216899960,0.12549,189.79,189.69,33.39506001]
[1735216900455,0.12549,189.79,189.7,9.61817601]
[1735216901253,6.1745,189.8,189.71,9.61817601]
[1735216901425,6.1745,189.8,189.72,23.776884]
[1735216901623,6.1745,189.8,189.72,33.39506001]
[1735216902163,6.1745,189.8,189.71,33.39506001]
[1735216902332,6.1745,189.8,189.71,23.776884]
[1735216902533,6.1745,189.8,189.71,33.39506001]
[1735216903056,6.1745,189.8,189.73,9.61817601]
[1735216904957,6.1745,189.8,189.74,23.776884]
[1735216905275,6.2154,189.84,189.76,9.61817601]
[1735216905435,6.2154,189.84,189.77,9.61817601]
[1735216906659,6.2154,189.84,189.78,33.39506001]
[1735216906953,1.1067,189.88,189.8,23.776884]
[1735216908550,6.2154,189.89,189.84,9.61817601]
[1735216910658,1.1067,189.93,189.84,9.61817601]
[1735216913151,20.0,189.91,189.81,10.40819516]
[1735216913564,20.0,189.91,189.82,23.776884]
[1735216913853,20.0,189.91,189.82,33.39506001]
[1735216915884,20.0,189.91,189.82,23.776884]
[1735216916346,20.0,189.91,189.82,33.39506001]
[1735216918059,1.1067,189.93,189.82,33.39506001]
[1735216920360,1.1067,189.93,189.82,23.776884]
[1735216920760,20.0,189.91,189.82,23.776884]
[1735216920936,20.0,189.91,189.81,0.79001915]
[1735216921257,0.12549,189.9,189.78,0.78997916]
[1735216921458,0.12549,189.88,189.75,11.92775517]
[1735216921643,7.7135,189.87,189.76,23.776884]
[1735216922057,0.12549,189.86,189.75,0.78997916]
[1735216922251,0.12549,189.83,189.72,9.61817601]
[1735216922644,0.12549,189.83,189.72,10.40854481]
[1735216923150,0.12549,189.83,189.73,23.776884]
[1735216923656,0.12549,189.83,189.73,33.39506001]
[1735216924358,0.12549,189.83,189.72,33.39506001]
[1735216924766,0.12549,189.83,189.73,9.61817601]
[1735216924945,0.12549,189.83,189.74,9.61817601]
[1735216925465,20.0,189.84,189.74,9.61817601]
[1735216926863,20.0,189.84,189.75,9.61817601]
[1735216927066,18.2475,189.87,189.76,33.39506001]
[1735216927067,7.7135,189.87,189.76,33.39506001]
[1735216927266,7.7135,189.87,189.77,9.61817601]
[1735216927770,7.7135,189.87,189.8,9.61817601]
[1735216928069,7.7135,189.87,189.79,23.776884]
[1735216928070,7.7135,189.87,189.81,10.40824909]
[1735216929069,7.6418,189.91,189.82,33.39506001]
[1735216929244,7.6418,189.91,189.83,9.61817601]
[1735216929770,7.6418,189.91,189.82,33.39506001]
[1735216930264,7.6418,189.91,189.82,23.776884]
[1735216932259,7.6418,189.91,189.81,9.61817601]
[1735216933669,7.6418,189.91,189.82,23.776884]
[1735216933859,7.6418,189.91,189.82,33.39506001]
[1735216934875,7.6418,189.91,189.84,23.776884]
[1735216935054,6.5351,189.91,189.84,33.39506001]
[1735216935252,6.5351,189.94,189.86,23.776884]
[1735216937065,6.5351,189.98,189.9,23.776884]
[1735216937273,6.5351,189.98,189.91,23.776884]
[1735216938393,6.5351,189.98,189.9,10.4077755]
[1735216938579,6.5351,189.98,189.9,24.56648349]
[1735216938770,6.5351,189.98,189.91,23.776884]
[1735216939276,20.0,189.95,189.85,9.61817601]
[1735216940179,20.0,189.95,189.86,23.776884]
[1735216942480,20.0,189.95,189.85,23.776884]
[1735216944175,20.0,189.95,189.84,33.39506001]
[1735216944484,6.4035,189.92,189.83,9.61817601]
[1735216944670,6.4035,189.92,189.84,23.776884]
[1735216944868,6.4035,189.92,189.81,0.78997208]
[1735216945177,0.12549,189.91,189.79,9.61817601]
[1735216945379,0.12549,189.91,189.78,9.61817601]
[1735216945757,0.12549,189.91,189.79,9.61817601]
[1735216945961,0.12549,189.91,189.8,9.61817601]
[1735216946976,20.0,189.89,189.8,9.61817601]
[1735216948682,20.0,189.89,189.81,23.776884]
[1735216948899,6.4035,189.92,189.83,33.39506001]
[1735216949790,6.4035,189.92,189.85,23.776884]
[1735216951288,6.4035,189.92,189.83,23.776884]
[1735216951979,6.4035,189.92,189.84,23.776884]
[1735216953789,6.4035,189.92,189.83,33.39506001]
[1735216954085,6.4035,189.92,189.84,23.776884]
[1735216954282,6.4035,189.92,189.81,9.61817601]
[1735216954704,6.4035,189.92,189.78,13.1731]
[1735216954705,20.0,189.89,189.79,9.61817601]
[1735216955514,20.0,189.89,189.8,23.776884]
[1735216957789,20.0,189.89,189.8,33.39506001]
[1735216960588,20.0,189.89,189.8,9.61817601]
[1735216960780,20.0,189.89,189.82,9.61817601]
[1735216961893,20.0,189.89,189.8,23.776884]
[1735216962189,20.0,189.89,189.79,9.61817601]
[1735216962373,20.0,189.89,189.8,10.4083024]
[1735216963173,6.4035,189.92,189.81,9.61817601]
[1735216963391,6.4035,189.92,189.84,23.776884]
[1735216963590,6.4035,189.92,189.84,34.18493417]
[1735216965796,6.4035,189.92,189.84,10.40805017]
[1735216966194,6.4035,189.92,189.84,0.78987416]
[1735216966767,1.1067,189.94,189.84,10.40805017]
[1735216968194,1.1067,189.94,189.86,9.61817601]
[1735216968387,1.1067,189.94,189.87,0.78977809]
[1735216969297,1.1067,189.94,189.86,9.61817601]
[1735216969486,1.1067,189.94,189.84,0.78974656]
[1735216969886,1.1067,189.94,189.84,10.40792257]
[1735216971002,1.1067,189.94,189.85,9.61817601]
[1735216971182,1.1067,189.94,189.86,0.78978741]
[1735216973709,1.1067,189.94,189.85,23.776884]
[1735216980608,1.1067,189.94,189.85,33.39506001]
[1735216981312,1.1067,189.94,189.84,0.78977787]
[1735216981613,1.1067,189.94,189.83,13.169]
[1735216982714,1.1067,189.94,189.84,0.78988539]
[1735216983706,20.0,189.92,189.84,0.78988539]
[1735216984096,20.0,189.92,189.83,13.169]
[1735216985715,20.0,189.92,189.84,0.78989348]
[1735216986211,20.0,189.92,189.83,13.169]
[1735216987630,20.0,189.92,189.82,0.78994333]
[1735216993324,1.1067,189.94,189.82,10.40811934]
[1735216995803,20.0,189.92,189.82,10.40811934]
[1735216997135,20.0,189.92,189.82,0.78994333]
[1735216999232,1.1067,189.94,189.83,33.39506001]
[1735216999438,1.1067,189.94,189.84,0.78982552]
[1735217002430,1.1067,189.89,189.76,10.40818999]
[1735217002828,1.1067,189.89,189.76,0.79001398]
[1735217003021,1.1067,189.89,189.76,10.40818999]
[1735217003214,1.1067,189.89,189.76,0.79001398]
[1735217003416,1.1067,189.89,189.77,24.56706124]
[1735217003932,0.12549,189.88,189.77,0.79017724]
[1735217005148,20.0,189.87,189.75,9.61817601]
[1735217005344,20.0,189.86,189.75,0.79025263]
[1735217005643,6.1375,189.85,189.73,22.79467601]
[1735217006522,6.1375,189.85,189.74,23.776884]
[1735217006830,0.12549,189.84,189.74,0.79030848]
[1735217007019,1.1067,189.83,189.73,0.79035726]
[1735217007420,1.1067,189.83,189.72,9.61817601]
[1735217008432,1.1067,189.83,189.74,23.776884]
[1735217008607,1.1067,189.83,189.75,0.79029651]
[1735217008811,1.1067,189.83,189.73,29.61817601]
[1735217009319,1.1067,189.83,189.74,47.36132045]
[1735217009725,1.1067,189.83,189.75,9.61817601]
[1735217010027,1.1067,189.83,189.76,10.40834149]
[1735217010638,6.1375,189.85,189.77,33.39506001]
[1735217010844,6.1375,189.85,189.78,10.40828866]
[1735217011349,6.1375,189.85,189.78,0.79011265]
[1735217011543,6.1375,189.85,189.78,10.40828866]
[1735217011735,6.1375,189.85,189.79,23.776884]
[1735217011935,6.1375,189.85,189.79,33.39506001]
[1735217012127,1.1067,189.87,189.8,0.79003402]
[1735217012329,1.1067,189.87,189.81,23.776884]
[1735217012558,6.1375,189.9,189.82,0.78995576]
[1735217014250,6.1375,189.9,189.82,10.40813177]
[1735217014629,6.1375,189.9,189.83,9.61817601]
[1735217015149,6.1375,189.9,189.84,0.78988027]
[1735217016152,6.1375,189.9,189.82,0.7899288]
[1735217017452,6.1375,189.9,189.82,10.40810481]
[1735217019456,6.1375,189.9,189.81,23.776884]
[1735217020370,6.1375,189.9,189.77,22.79197601]
[1735217020533,6.1375,189.9,189.78,0.79012442]
[1735217021941,20.0,189.87,189.78,0.79012442]
[1735217022243,20.0,189.87,189.75,1.6446]
[1735217022244,20.0,189.87,189.75,0.79011478]
[1735217022449,20.0,189.87,189.75,10.40829079]
[1735217022642,7.2375,189.86,189.75,0.79011478]
[1735217023853,7.2375,189.86,189.82,7.514501]
[1735217034971,20.0,189.88,189.82,7.514501]
[1735217035170,6.6582,189.91,189.82,7.514501]
[1735217036355,20.0,189.88,189.82,7.514501]
[1735217038277,6.6582,189.91,189.82,7.514501]
[1735217045382,0.12549,189.9,189.82,7.514501]
[1735217045680,20.0,189.87,189.82,7.514501]
[1735217050562,20.12549,189.86,189.82,7.514501]
[1735217051209,20.0,189.86,189.82,7.514501]
[1735217053306,0.12549,189.85,189.82,7.514501]
[1735217054735,23.902374,189.86,189.82,7.514501]
[1735217055407,20.0,189.87,189.82,7.514501]
[1735217056918,0.12549,189.86,189.82,7.514501]
[1735217058392,20.0,189.87,189.82,7.514501]
[1735217061008,0.12549,189.86,189.82,7.514501]
[1735217062124,0.12549,189.87,189.82,7.514501]
[1735217062721,20.12549,189.87,189.82,7.514501]
[1735217063517,20.0,189.85,189.82,7.514501]
[1735217064226,0.12549,189.84,189.82,7.514501]
[1735217072333,20.12549,189.84,189.82,7.514501]
[1735217072538,20.0,189.83,189.82,7.514501]
[1735217073541,20.12549,189.83,189.82,7.514501]
[1735217077339,0.12549,189.82,189.74,1.5705]
[1735217077540,0.12549,189.8,189.74,1.5705]
[1735217077743,0.12549,189.78,189.7,6.5106]
[1735217079565,20.0,189.75,189.69,1.5804]
[1735217087141,20.0,189.76,189.69,1.5804]
[1735217087752,20.0,189.79,189.69,1.5804]
[1735217087946,9.2193,189.82,189.69,1.5804]
[1735217087947,20.0,189.78,189.69,1.5804]
[1735217088565,20.0,189.76,189.69,1.5804]
[1735217088762,0.12549,189.75,189.69,1.5804]
[1735217093378,20.0,189.77,189.69,1.5804]
[1735217094378,0.12549,189.77,189.69,1.5804]
[1735217094573,20.12549,189.77,189.69,1.5804]
[1735217094960,20.0,189.75,189.69,1.5804]
[1735217101586,29.2227,189.75,189.69,1.5804]
[1735217102080,20.0,189.71,189.64,1.5231]
[1735217102263,0.12549,189.7,189.64,1.5231]
[1735217103364,9.2255,189.69,189.64,1.5231]
[1735217107292,0.12549,189.68,189.64,1.5231]
[1735217107782,20.0,189.66,189.64,1.5231]
[1735217109805,0.12549,189.65,189.6,1.5514]
[1735217109960,20.0,189.63,189.56,1.5514]
[1735217110165,20.0,189.62,189.56,1.5514]
[1735217110582,0.12549,189.61,189.56,1.5514]
[1735217112107,9.35499,189.61,189.56,1.5514]
[1735217115306,20.0,189.58,189.52,1.5514]
[1735217116112,23.902374,189.57,189.52,1.5514]
[1735217116316,20.0,189.54,189.47,1.5514]
[1735217117599,18.4593,189.61,189.47,11.16957601]
[1735217117804,20.0,189.58,189.48,9.61817601]
[1735217118028,20.0,189.57,189.48,9.61817601]
[1735217119532,20.0,189.57,189.47,1.5514]
[1735217120432,20.12549,189.56,189.47,1.5514]
[1735217121331,20.0,189.52,189.47,1.5514]
[1735217121818,0.12549,189.51,189.47,1.5514]
[1735217123435,0.12549,189.49,189.47,1.5514]
[1735217124836,0.12549,189.49,189.42,7.599]
[1735217125912,9.2348,189.5,189.42,7.599]
[1735217129864,20.0,189.47,189.42,7.599]
[1735217130321,0.12549,189.46,189.42,1.5736]
[1735217130524,20.0,189.45,189.42,1.5736]
[1735217134962,5.92141832,189.5,189.42,1.5736]
[1735217135358,15.25292727,189.54,189.43,6.1809]
[1735217135541,9.2329,189.54,189.43,6.1809]
[1735217135858,0.12549,189.53,189.43,6.1809]
[1735217136733,20.0,189.51,189.43,6.1809]
[1735217137451,20.0,189.51,189.44,1.5962]
[1735217138852,20.0,189.54,189.44,2.38782501]
[1735217139832,20.0,189.54,189.44,10.40980102]
[1735217140155,5.92141832,189.58,189.49,1.5962]
[1735217140354,5.92141832,189.58,189.49,2.38751354]
[1735217140731,5.92141832,189.58,189.49,1.5962]
[1735217140933,0.12549,189.57,189.49,1.5962]
[1735217141343,20.0,189.55,189.49,1.5962]
[1735217142875,20.0,189.57,189.49,1.5962]
[1735217143965,20.0,189.52,189.49,1.5962]
[1735217148162,9.35979,189.51,189.44,1.5598]
[1735217148874,20.0,189.48,189.44,1.5598]
[1735217149877,20.0,189.52,189.44,1.5598]
[1735217153959,20.0,189.52,189.44,11.96953554]
[1735217154158,6.62000023,189.56,189.45,9.61817601]
[1735217154358,23.902374,189.58,189.45,9.61817601]
[1735217154559,91.1309,189.59,189.46,9.61817601]
[1735217154759,91.1309,189.59,189.47,11.20167601]
[1735217155156,0.12549,189.58,189.47,11.20167601]
[1735217155778,0.12549,189.58,189.47,1.5835]
[1735217156893,20.0,189.56,189.47,1.5835]
[1735217157479,20.0,189.56,189.48,6.98182275]
[1735217157684,20.0,189.57,189.49,1.5835]
[1735217158590,17.35500906,189.6,189.5,10.40948449]
[1735217158894,17.35500906,189.6,189.51,11.20167601]
[1735217159196,17.35500906,189.6,189.52,0.79120539]
[1735217159792,17.35500906,189.6,189.54,1.5835]
[1735217160488,6.62000023,189.65,189.54,1.5835]
[1735217161572,20.0,189.62,189.54,1.5835]
[1735217161995,20.0,189.65,189.54,1.5835]
[1735217163196,20.0,189.65,189.55,0.79113697]
[1735217163502,20.0,189.65,189.56,1.5885]
[1735217163796,9.2261,189.68,189.57,0.79100318]
[1735217164996,20.0,189.65,189.58,6.5245]
[1735217165468,20.0,189.66,189.58,6.5245]
[1735217165675,20.0,189.68,189.59,1.5522]
[1735217165895,9.2246,189.71,189.59,1.5522]
[1735217167192,20.0,189.68,189.59,1.5522]
[1735217168700,20.0,189.68,189.59,2.34312]
[1735217168901,20.0,189.68,189.59,11.96129601]
[1735217169192,20.0,189.68,189.59,2.34312]
[1735217169382,0.12549,189.7,189.59,1.5522]
[1735217169576,20.12549,189.7,189.59,1.5522]
[1735217171297,29.35069,189.7,189.59,1.5522]
[1735217176191,20.0,189.64,189.52,1.5522]
[1735217176603,20.0,189.64,189.52,11.96162461]
[1735217177193,20.0,189.65,189.55,9.61817601]
[1735217177383,20.0,189.65,189.56,1.5522]
[1735217177706,20.0,189.65,189.57,6.5245]
[1735217178599,0.12549,189.65,189.57,6.5245]
[1735217179516,20.12549,189.65,189.57,6.5245]
[1735217179713,9.35319,189.65,189.57,6.5245]
[1735217179891,20.0,189.62,189.57,6.5245]
[1735217182234,20.0,189.65,189.57,6.5245]
[1735217182475,12.50025188,189.69,189.57,6.5245]
[1735217182724,9.2247,189.71,189.58,12.05794121]
[1735217184128,95.803063,189.75,189.59,1.6487]
[1735217184427,33.125474,189.74,189.61,1.6487]
[1735217185603,9.34859,189.74,189.61,1.6487]
[1735217185805,9.34859,189.74,189.62,7.03370007]
[1735217186134,9.2231,189.74,189.63,1.6487]
[1735217186564,81.9,189.75,189.63,11.26687601]
[1735217186759,81.9,189.75,189.64,0.79072991]
[1735217186941,9.2218,189.77,189.64,0.79072991]
[1735217187675,0.12549,189.76,189.64,0.79072991]
[1735217188469,20.0,189.74,189.64,0.79072991]
[1735217188663,20.0,189.74,189.66,1.6487]
[1735217189274,20.0,189.74,189.67,6.2429]
[1735217193370,20.0,189.76,189.67,6.2429]
[1735217193968,20.0,189.75,189.67,6.2429]
[1735217208198,9.2212,189.78,189.68,11.20707601]
[1735217208425,9.2212,189.78,189.68,1.5889]
[1735217210005,20.0,189.76,189.68,1.5889]
[1735217214210,17.67064505,189.79,189.68,1.5889]
[1735217216408,17.67064505,189.79,189.69,9.61817601]
[1735217216584,17.67064505,189.79,189.7,1.5576]
[1735217221125,17.67064505,189.79,189.7,11.17577601]
[1735217221291,17.67064505,189.79,189.71,6.3883]
[1735217225226,17.67064505,189.79,189.71,6.3883]
[1735217226233,17.67064505,189.79,189.7,1.5576]
[1735217226234,20.0,189.75,189.7,1.5576]
[1735217230612,20.0,189.76,189.7,1.5576]
[1735217230827,29.2225,189.76,189.7,1.5576]
[1735217232736,0.12549,189.75,189.7,1.5576]
[1735217232913,20.0,189.71,189.65,1.6488]
[1735217234531,29.2247,189.71,189.65,1.6488]
[1735217236018,20.0,189.71,189.65,1.6488]
[1735217240151,20.0,189.69,189.65,1.6488]
[1735217241157,29.2255,189.69,189.65,1.6488]
[1735217241316,0.12549,189.68,189.61,7.8622]
[1735217241516,20.0,189.65,189.61,1.5963]
[1735217242556,20.0,189.63,189.61,1.5963]
[1735217245530,9.2272,189.66,189.61,1.5963]
[1735217246957,20.0,189.63,189.61,1.5963]
[1735217255972,20.0,189.63,189.56,8.1145]
[1735217256272,9.2272,189.66,189.56,8.1145]
[1735217270675,81.9,189.69,189.56,8.1145]
[1735217270973,89.90423738,189.72,189.58,1.6293]
[1735217271182,99.12853738,189.72,189.58,1.6293]
[1735217271377,0.12549,189.71,189.58,11.24747601]
[1735217271957,99.12853738,189.72,189.58,12.03843684]
[1735217272356,20.0,189.69,189.58,1.6293]
[1735217280598,0.12549,189.68,189.58,1.6293]
[1735217280985,20.12549,189.68,189.58,1.6293]
[1735217282505,29.35149,189.68,189.58,1.6293]
[1735217282705,0.12549,189.66,189.58,1.6293]
[1735217283211,20.0,189.65,189.58,1.6293]
[1735217291408,20.0,189.63,189.58,1.6293]
[1735217291791,20.0,189.61,189.58,1.6293]
[1735217293298,9.2283,189.64,189.58,1.6293]
[1735217293299,20.0,189.6,189.58,1.6293]
[1735217293712,8.24512782,189.63,189.58,1.6293]
[1735217293912,8.24512782,189.64,189.58,1.6293]
[1735217294718,20.0,189.64,189.58,1.6293]
[1735217295720,9.2266,189.67,189.58,1.6293]
[1735217297422,20.0,189.67,189.58,11.24747601]
[1735217301522,20.0,189.67,189.58,1.6293]
[1735217301727,9.35249,189.66,189.58,1.6293]
[1735217302302,20.0,189.63,189.58,1.6293]
[1735217303925,20.12549,189.63,189.58,1.6293]
[1735217304504,20.0,189.62,189.58,1.6293]
[1735217305125,20.0,189.61,189.58,1.6293]
[1735217305513,20.0,189.59,189.58,1.6293]
[1735217306419,20.0,189.59,189.52,1.5593]
[1735217312730,20.0,189.57,189.52,1.5593]
[1735217313322,9.2303,189.6,189.52,1.5593]
[1735217314639,23.902374,189.63,189.52,1.5593]
[1735217314933,20.0,189.6,189.52,1.5593]
[1735217322145,3.84511324,189.65,189.53,9.61817601]
[1735217322325,0.12549,189.64,189.54,1.6551]
[1735217323335,24.67986117,189.66,189.55,39.59066001]
[1735217323536,9.227,189.66,189.55,39.59066001]
[1735217323733,0.12549,189.68,189.56,9.61817601]
[1735217324039,0.12549,189.68,189.57,1.6551]
[1735217324245,0.12549,189.68,189.57,11.27327601]
[1735217324946,20.0,189.66,189.57,1.6551]
[1735217325262,20.0,189.64,189.57,1.6551]
[1735217336942,20.0,189.67,189.58,23.776884]
[1735217337245,17.47032782,189.7,189.59,8.2746]
[1735217337452,9.2252,189.7,189.59,8.2746]
[1735217338855,20.0,189.67,189.6,23.776884]
[1735217340840,20.0,189.67,189.59,8.2746]
[1735217341757,9.2252,189.7,189.59,8.2746]
[1735217343058,0.12549,189.73,189.59,8.2746]
[1735217343236,20.0,189.7,189.59,8.2746]
[1735217347263,29.225,189.71,189.59,8.2746]
[1735217347557,0.12549,189.7,189.59,8.2746]
[1735217347764,20.0,189.69,189.59,8.2746]
[1735217347966,20.0,189.67,189.59,8.2746]
[1735217348455,0.12549,189.66,189.59,8.2746]
[1735217349466,9.2275,189.65,189.59,8.2746]
[1735217350865,0.12549,189.64,189.59,1.6494]
[1735217351051,9.2284,189.63,189.59,1.6494]
[1735217352265,9.35249,189.66,189.59,1.6494]
[1735217352767,20.0,189.63,189.59,1.6494]
[1735217353165,0.12549,189.62,189.59,1.6494]
[1735217353345,0.12549,189.62,189.54,6.4068]
[1735217353966,0.12549,189.62,189.53,1.5536]
[1735217354171,23.902374,189.62,189.53,1.5536]
[1735217354471,20.0,189.55,189.53,1.5536]
[1735217356584,9.2294,189.61,189.53,1.5536]
[1735217357073,0.12549,189.6,189.53,1.5536]
[1735217357750,20.0,189.58,189.53,1.5536]
[1735217358272,20.0,189.61,189.53,1.5536]
[1735217358654,20.0,189.59,189.53,1.5536]
[1735217368680,9.2289,189.62,189.53,1.5536]
[1735217369388,4.20209095,189.63,189.53,11.17177601]
[1735217369559,6.2991941,189.64,189.53,11.17177601]
[1735217369870,6.2991941,189.64,189.54,23.776884]
[1735217370075,9.2274,189.66,189.54,33.39506001]
[1735217370376,9.2274,189.66,189.56,9.61817601]
[1735217371661,4.5190896,189.68,189.58,1.5779]
[1735217372877,20.0,189.66,189.58,1.5779]
[1735217373282,20.0,189.66,189.57,9.61817601]
[1735217373283,9.2241,189.72,189.61,1.5779]
[1735217374669,20.0,189.69,189.61,1.5779]
[1735217376761,5.60165517,189.73,189.62,23.776884]
[1735217376983,5.60165517,189.73,189.63,1.5906]
[1735217378571,5.60165517,189.73,189.63,11.20877601]
[1735217378868,20.0,189.71,189.63,11.20877601]
[1735217379183,5.58327757,189.74,189.63,11.20877601]
[1735217380188,20.0,189.73,189.63,11.20877601]
[1735217380687,20.0,189.73,189.64,23.776884]
[1735217380982,20.0,189.73,189.65,6.5546]
[1735217382683,20.0,189.73,189.66,1.5906]
[1735217383075,5.60165517,189.77,189.66,1.5906]
[1735217383076,20.0,189.74,189.66,1.5906]
[1735217383277,20.0,189.75,189.66,1.5906]
[1735217385183,20.0,189.75,189.66,11.20877601]
[1735217385387,20.0,189.75,189.67,24.56750592]
[1735217385593,24.27734589,189.78,189.67,24.56750592]
[1735217385594,24.27734589,189.78,189.69,23.776884]